Cogmind - Beta 13 @@@ ROGUE MODE // 2024.04.07 @ 00:45:37 Player: SadFrogster Result: Destroyed by D-53 Grenadier with Mini Grenade Launcher Performance ------------- Evolutions (1) 500 Regions Visited (3) 600 Robots Destroyed (38) 190 Value Destroyed (817) 817 Prototype IDs (2) 40 Alien Tech Used (0) 0 Bonus (-6) -6 TOTAL SCORE: 2141 Bonus ------- Friendly Fire -6 Cogmind --------- Core Integrity 0/400 Matter 8/300 Energy 92/100 System Corruption 5% Temperature Cool (0) Movement Rolling (135) Ox3 Location -9/Mines Parts ------- > --- POWER (1) -------- (None) > --- PROPULSION (2) --- Armored Wheel Armored Wheel > --- UTILITY (4) ------ Huge Storage Unit Structural Scanner > --- WEAPON (2) ------- (None) > --- INVENTORY (25) --- Ion Engine Ion Engine Improved VTOL Module Improved VTOL Module Improved VTOL Module Terrain Scanner Terrain Scanner Targeting Computer Targeting Computer Core Shielding Core Shielding Hardened Light Armor Plating Hardened Light Armor Plating High-powered Shotgun High-powered Shotgun Light Cannon Light Cannon Rocket Launcher Datajack Peak State ------------ > --- POWER ------------ Ion Engine > --- PROPULSION ------- Armored Wheel Armored Wheel > --- UTILITY ---------- Huge Storage Unit Hardened Light Armor Plating Hardened Light Armor Plating Hardened Light Armor Plating > --- WEAPON ----------- High-powered Shotgun High-powered Shotgun > --- INVENTORY -------- Ion Engine Ion Engine Ion Engine Armored Wheel Armored Wheel Improved VTOL Module Improved VTOL Module Improved VTOL Module Structural Scanner Terrain Scanner Terrain Scanner Targeting Computer Targeting Computer Core Shielding Core Shielding Hardened Light Armor Plating Hardened Light Armor Plating Hardened Light Armor Plating High-powered Shotgun High-powered Shotgun Light Cannon Light Cannon Datajack [Rating: 22] Favorites ----------- Power Ion Engine Engine Ion Engine Power Core Light Nuclear Core Propulsion Armored Wheel Treads Light Treads Leg Aluminum Leg Wheel Armored Wheel Flight Unit Flight Unit Utility Huge Storage Unit Device Structural Scanner Storage Huge Storage Unit Protection Hardened Light Armor Plating Weapon Light Assault Rifle Energy Gun Improved EM Shotgun Ballistic Gun Light Assault Rifle Ballistic Cannon Light Cannon Launcher Rocket Launcher Build | -11 -10 -9 -9 ------- Run | Yrd Mat Mat Min Slots Evolved 2 | . . 2 . Power . | . . . . Propulsion . | . . . . Utility 2 | . . 2 . Weapon . | . . . . Parts Attached 63 | 5 21 24 13 Power 10 | 1 3 5 1 Engine 9 | 1 2 5 1 Core 1 | . 1 . . Reactor . | . . . . Propulsion 19 | 2 10 5 2 Treads 2 | 2 . . . Leg 2 | . 2 . . Wheel 12 | . 6 4 2 Hover . | . . . . Flight 3 | . 2 1 . Utility 15 | 1 4 8 2 Device 3 | . 2 1 . Storage 2 | 1 1 . . Processor . | . . . . Hackware . | . . . . Protection 10 | . 1 7 2 Artifact . | . . . . Weapon 19 | 1 4 6 8 Energy Gun 1 | . . 1 . Energy Cannon . | . . . . Ballistic Gun 10 | 1 3 3 3 Ballistic Cannon 1 | . 1 . . Launcher 7 | . . 2 5 Special Weapon . | . . . . Impact Weapon . | . . . . Slashing Weapon . | . . . . Piercing Weapon . | . . . . Special Melee Weapon . | . . . . Unidentified Prototypes 2 | . . 2 . Parts Lost 17 | . 3 3 11 Power 3 | . 1 1 1 Propulsion 4 | . 2 . 2 Utility 6 | . . 2 4 Weapon 4 | . . . 4 Highest Loss Streak 11 | . 3 1 11 To Critical Strikes . | . . . . Average Slot Usage (%) 91 | . 89 96 92 Engine 6 | . 6 6 9 Core 5 | . 6 4 . Treads 7 | . 12 . . Wheel 12 | . 7 21 19 Flight 2 | . 4 . . Device 9 | . 9 8 11 Storage 12 | . 14 11 11 Protection 9 | . 1 22 20 Ballistic Gun 14 | . 17 12 2 Ballistic Cannon 5 | . 5 6 . Launcher 2 | . . 2 17 Naked Turns . | . . . . Heaviest Build 108 | 11 92 108 104 Greatest Support 40 | 40 40 24 24 Greatest Overweight (x) 33 | 1 30 33 8 Average Overweight (x) 3 | . 3 4 4 Largest Inventory Capacity 25 | 8 25 25 25 Average Capacity 23 | 7 23 25 25 Most Carried 25 | . 25 25 25 Average Carried 17 | . 13 23 24 Final Capacity 25 | 8 25 25 25 Final Carried 25 | . 25 25 19 Class Distribution -------------------- 75% | Mutant 24% | Scavenger-Mutant Dominant Class ---------------- Mutant | -10/Materials Mutant | -9/Materials Mutant | -9/Mines Resources | -11 -10 -9 -9 ----------- Run | Yrd Mat Mat Min Matter Collected 1008 | 202 319 362 125 Remotely . | . . . . Salvage Created 932 | . 392 309 231 Parts 80 | . 33 32 15 Haulers Intercepted 1 | . 1 . . Recyclers Shooed . | . . . . Parts Field Recycled . | . . . . Retrieved Matter . | . . . . Parts Self-Destructed . | . . . . Prevented . | . . . . Kills | -11 -10 -9 -9 ------- Run | Yrd Mat Mat Min Combat Hostiles Destroyed 42 | . 10 17 15 Guns 24 | . 8 11 5 Cannons 8 | . 2 6 . AOE 10 | . . . 10 Classes Destroyed 10 | . 6 1 3 Worker 1 | . . . 1 Builder 1 | . 1 . . Hauler 1 | . 1 . . Recycler 1 | . 1 . . Watcher 1 | . 1 . . Swarmer 17 | . 6 11 . Grunt 13 | . 4 4 5 Brawler 1 | . . . 1 Sentry 2 | . . 2 . Assembled 9 | . . . 9 Best Kill Streak 12 | . 3 9 12 Combat Bots Only 9 | . 3 9 9 Max Kills in Single Turn 4 | . 1 2 4 Gunslinging 1 | . . . 1 Exploded 4 | . . . 4 Melee . | . . . . Uniques/NPCs Destroyed . | . . . . Combat | -11 -10 -9 -9 -------- Run | Yrd Mat Mat Min Hostile Shots Fired 253 | . 92 109 52 Missed 49 | . 16 24 9 Damage Taken 3063 | . 774 886 1403 Core 498 | . 91 124 283 Absorbed by Shields . | . . . . Regen/Repaired (Parts) 56 | . 56 . . Core Remaining (%) 81 | 100 63 . . Volleys Fired 127 | . 72 44 11 Largest 2 | . 2 2 2 Hottest 66 | . 55 55 66 Shots Fired 207 | . 99 88 20 Gun 162 | . 90 62 10 Cannon 35 | . 9 26 . Launcher 10 | . . . 10 Special . | . . . . Kinetic 197 | . 99 88 10 Thermal . | . . . . Explosive 10 | . . . 10 Electromagnetic . | . . . . Robot Hit Streak 9 | . 9 8 5 Robot Miss Streak 6 | . 4 6 4 Penetration Max . | . . . . Secondary Targets 6 | . 1 4 1 Max Gunslinging Chain 1 | . 1 1 1 Shots Hit Robots 127 | . 60 55 12 Core Hits 87 | . 27 25 35 Critical Kills 1 | . 1 . . Critical Parts Destroyed . | . . . . Critical Strikes 1 | . 1 . . Destroy 1 | . 1 . . Melee Attacks . | . . . . Impact . | . . . . Slashing . | . . . . Piercing . | . . . . Sneak Attacks . | . . . . Combat Hostiles . | . . . . Follow-up Attacks . | . . . . Damage Inflicted 2389 | . 536 781 1072 Guns 1142 | . 452 523 167 Cannons 342 | . 84 258 . Explosions 905 | . . . 905 Melee . | . . . . Ramming . | . . . . Kinetic 1484 | . 536 781 167 Thermal . | . . . . Explosive 905 | . . . 905 Electromagnetic . | . . . . Impact . | . . . . Slashing . | . . . . Piercing . | . . . . Highest Corruption 5 | . . . 5 Average Corruption 5 | . . . 5 Corruption Purged . | . . . . Corruption Blocked . | . . . . Effects 3 | . . . 3 Matter Fused 1 | . . . 1 Energy Discharges 1 | . . . 1 Misfires 1 | . . . 1 Overload Shots . | . . . . Overflow Damage 31 | . . 6 25 Projectiles 6 | . . 6 . Explosions 25 | . . . 25 Melee . | . . . . Knockbacks 4 | . . 4 . Impact . | . . . . Kinetic 4 | . . 4 . Secondary . | . . . . Self-Inflicted Damage . | . . . . Shots . | . . . . Rammed . | . . . . Targets Rammed . | . . . . Kicked . | . . . . Crushed . | . . . . Highest Temperature 265 | . 88 265 84 Average Temperature 83 | . 30 112 35 Received Heat Transfer 543 | . 279 204 60 Effects 1 | . . 1 . Energy Bleed 1 | . . 1 . Siege Activations . | . . . . Robots Corrupted . | . . . . Combat Hostiles . | . . . . Parts Fried . | . . . . Impact Corruptions . | . . . . Robots Melted . | . . . . Combat Hostiles . | . . . . Parts Melted . | . . . . Heat Transferred . | . . . . Parts Sabotaged . | . . . . Parts Stolen . | . . . . Parts Stripped . | . . . . Power Chain Reactions . | . . . . Alert | -11 -10 -9 -9 ------- Run | Yrd Mat Mat Min Peak Influence 258 | . 173 257 258 Initial 100 | . . . 100 Average 81 | . 56 116 170 Maximum Alert Level 1 | . . 1 1 Low Security (%) 89 | 100 100 70 82 Level 1 10 | . . 29 17 Level 2 . | . . . . Level 3 . | . . . . Level 4 . | . . . . Level 5 . | . . . . High Security . | . . . . Max Security . | . . . . Squads Dispatched 3 | . 2 1 . Investigation 2 | . 2 . . Extermination . | . . . . Reinforcement 1 | . . 1 . Assault . | . . . . Garrison . | . . . . Intercept . | . . . . Searches Triggered . | . . . . Construction Impeded . | . . . . Haulers Reinforced . | . . . . Active Scanning Responses . | . . . . Cargo Convoy Interrupts . | . . . . Stealth | -11 -10 -9 -9 --------- Run | Yrd Mat Mat Min Distress Signals . | . . . . Communications Jammed . | . . . . Distress Signals . | . . . . Times Spotted 61 | . 21 20 20 Peak Tracking Total 12 | . 4 8 12 Tactical Retreats 3 | . 1 2 . Traps | -11 -10 -9 -9 ------- Run | Yrd Mat Mat Min Traps Triggered 6 | . 4 2 . Indirectly . | . . . . Trap Hack Attempts . | . . . . Triggered . | . . . . Disarmed . | . . . . Reprogrammed . | . . . . Reused . | . . . . Traps Extracted . | . . . . Installed . | . . . . Triggered . | . . . . Machines | -11 -10 -9 -9 ---------- Run | Yrd Mat Mat Min Machines Disabled 1 | . . 1 . Max in Single Turn 1 | . . 1 . Machines Repaired . | . . . . Machines Dismantled . | . . . . Machines Sabotaged . | . . . . Overloaded Fab Kills . | . . . . Hacking | -11 -10 -9 -9 --------- Run | Yrd Mat Mat Min Machines Accessed 3 | . 3 . . Terminals 2 | . 2 . . Fabricators . | . . . . Repair Stations 1 | . 1 . . Recycling Units . | . . . . Scanalyzers . | . . . . Garrison Access . | . . . . Total Hacks 5 | . 5 . . Successful 4 | . 4 . . Failed 1 | . 1 . . Catastrophic . | . . . . Database Lockouts . | . . . . Manual . | . . . . Terminals 2 | . 2 . . Fabricators . | . . . . Repair Stations 3 | . 3 . . Recycling Units . | . . . . Scanalyzers . | . . . . Garrison Access . | . . . . Terminal Hacks 2 | . 2 . . Record 1 | . 1 . . Alert Level 1 | . 1 . . Fabricator Hacks . | . . . . Repair Station Hacks 2 | . 2 . . Scan Component 1 | . 1 . . Repair 1 | . 1 . . Recycling Unit Hacks . | . . . . Scanalyzer . | . . . . Garrison Access Hacks . | . . . . Unauthorized Hacks . | . . . . Terminals . | . . . . Fabricators . | . . . . Repair Stations . | . . . . Recycling Units . | . . . . Scanalyzers . | . . . . Garrison Access . | . . . . Data Cores Recovered . | . . . . Used . | . . . . Hacking Detections 1 | . 1 . . Full Trace Events . | . . . . Feedback Events . | . . . . Feedback Blocked . | . . . . Robot Schematics Acquired . | . . . . Robots Built . | . . . . Authchips . | . . . . Time . | . . . . Total Robot Build Rating . | . . . . Part Schematics Acquired . | . . . . Parts Built . | . . . . Authchips . | . . . . Time . | . . . . Total Part Build Rating . | . . . . Parts Repaired 1 | . 1 . . Time 26 | . 26 . . Parts Recycled . | . . . . Recycled Matter . | . . . . Retrieved Matter . | . . . . Retrieved Components . | . . . . Parts Scanalyzed . | . . . . Part Schematics Acquired . | . . . . Parts Damaged . | . . . . Bothacking | -11 -10 -9 -9 ------------ Run | Yrd Mat Mat Min Used RIF Installer . | . . . . Robots Hacked . | . . . . Non-combat . | . . . . Combat . | . . . . Robot Hacks Applied . | . . . . Relay Couplers Released . | . . . . Fabnet Peak Effective % . | . . . . Robots Rewired . | . . . . Allies Hacked . | . . . . Hacks Repelled . | . . . . Allies | -11 -10 -9 -9 -------- Run | Yrd Mat Mat Min Total Allies . | . . . . Largest Group . | . . . . Highest-Rated Group . | . . . . Highest-Rated Ally . | . . . . Total Orders . | . . . . Ally Attacks . | . . . . Total Damage . | . . . . Kills . | . . . . Allies Corrupted . | . . . . Allies Melted . | . . . . Intel | -11 -10 -9 -9 ------- Run | Yrd Mat Mat Min Robot Analysis Total . | . . . . Derelict Logs Recovered 2 | . . . 2 Drone Launches . | . . . . Drone Recoveries . | . . . . Exploration | -11 -10 -9 -9 ------------- Run | Yrd Mat Mat Min Turns Passed 2654 | 51 1624 787 192 Spaces Moved 1058 | 35 561 374 88 Core 19 | 11 6 2 . Treads 257 | 24 233 . . Legs 10 | . 10 . . Wheels 745 | . 285 372 88 Hover . | . . . . Flight 27 | . 27 . . Fastest Speed 50 | 50 135 135 135 Average Speed 203 | 128 245 156 159 Slowest Speed 1700 | 160 1550 1700 210 Overloaded Moves . | . . . . Propulsion Burnouts . | . . . . Robots Hopped . | . . . . Cave-ins Triggered . | . . . . Exploration Rate (%) 40 | 3 94 34 30 Regions Visited 3 Branch Regions 1 Pre-discovered Areas 2 | . . . 2 Known Exits Taken . | . . . . Unknown Exits Taken 3 | 1 1 1 . Scrap Searched . | . . . . Spaces Dug . | . . . . Terrain Destroyed 76 | . . . 76 Melee . | . . . . Projectile . | . . . . AOE 76 | . . . 76 Terrain Rammed . | . . . . Walls Destroyed . | . . . . Machines Disabled . | . . . . Actions | -11 -10 -9 -9 --------- Run | Yrd Mat Mat Min Total 1373 | 39 723 493 118 Wait 55 | . 21 29 5 Move 1055 | 34 560 373 88 Hop . | . . . . Pick Up 39 | . 30 9 . Fast Attach 31 | 5 16 10 . Attach 13 | . . 7 6 Detach 11 | . 7 4 . Swap 19 | . 5 7 7 Drop 23 | . 12 10 1 Fire 127 | . 72 44 11 Melee . | . . . . Ram . | . . . . Kick . | . . . . Crush . | . . . . Escape Stasis . | . . . . Rewire . | . . . . Trap . | . . . . Miscellaneous . | . . . . Route ------- -11/Scrapyard -10/Materials (discovered 5 exits: [*Mat x3] / [*Min x2]) -9/Materials -9/Mines (discovered 1 exit: [*Mat]) History --------- Turn | Location | Event 20 | -11/Scrapyard | Discovered new exit (range 15) 52 | -11/Scrapyard | Entered Materials 233 | -10/Materials | Discovered new exit (range 16) 317 | -10/Materials | Build established: Mutant 560 | -10/Materials | Discovered new exit (range 6) 772 | -10/Materials | Repaired Lgt. Assault Rifle 832 | -10/Materials | Lost 3 parts (1p2n) 968 | -10/Materials | Discovered new exit (range 12) 1102 | -10/Materials | Discovered new exit (range 6) 1157 | -10/Materials | Build established: Scavenger-Mutant 1585 | -10/Materials | Discovered new exit (range 15) 1676 | -10/Materials | Entered another Materials area 1676 | -9/Materials | Evolved 2 slots: Utility x2 1789 | -9/Materials | Build established: Mutant 2329 | -9/Materials | Destroyed 9 combat bots 2454 | -9/Materials | Discovered new exit (range 7) 2463 | -9/Materials | Entered Mines 2464 | -9/Mines | Learned location of Storage (-7) 2487 | -9/Mines | Discovered new exit (range 5) 2579 | -9/Mines | Assembled infested the area 2610 | -9/Mines | Met 8R-AWN 2617 | -9/Mines | Destroyed 9 combat bots 2625 | -9/Mines | Core integrity fell below 50% 2652 | -9/Mines | Core integrity fell below 20% 2655 | -9/Mines | Destroyed by D-53 Grenadier with Mini Grenade Launcher Last Messages --------------- 02630_ T-07 Excavator is excavating. 02631_ The unstable cave ceiling collapses. 02632_ K-01 Serf collects debris. 02634_ The unstable cave ceiling collapses. 02636_ K-01 Serf collects debris. 02637_ System corrupted: Energy discharge (-77). 02637_ Ion Engine destroyed. 02642_ The unstable cave ceiling collapses. 02644_ Hrd. Light Armor Plating destroyed. 02644_ K-01 Serf collects debris. 02645_ Rocket Launcher destroyed. 02647_ The unstable cave ceiling collapses. 02649_ Acquired 4 matter. 02649_ Hrd. Light Armor Plating destroyed. 02649_ K-01 Serf collects debris. 02650_ The unstable cave ceiling collapses. 02651_ B-36 Bruiser destroyed. 02652_ K-01 Serf collects debris. 02654_ The unstable cave ceiling collapses. 02655_ Rocket Launcher destroyed. Map ----- +----------------------------------------------------+ | ???????????????????????## ######### | | ?????????????????????#### #### | | ??????????????????#######" ## | | ?????????????######### ##%## | | ?????????????###### == ## | | ?????????????## %=* #### ## | | ?????????????## ### #%#=! #### ### | | ?????????????## ## ##??? ##? | | ?????????????## ?## ##??????? | | ?????????????## ### ###?????? | | ?????????????## #### ###?????? | | ?????????????## ## ###????? | | ?????????????## ## ## ###????? | | ?????????????## # ## ???? | | ?????#####???## # # # ####???? | | ????? ######### ####???? | | ????? # ###### ## ##?????? | | ?????## ## ##?????? | | ?????## k ###?????? | | ????#### ## # ## ?????? | | ???######## # d # ##??????? | | ??#### ######??????? | | ??### ######??????? | | ??## %d ###??????????? | | ??### ;##??????????? | | ?### <@ ####??????????? | | ### ### ??????????? | | ## #####????????????? | | ## #####?????????????? | | ## #####???????????????? | | ### %####????????????????? | | #### ##?????????????????? | | ?### ?????????????????? | | ?? ## ???????????????? | | ??#### ## ???????????????? | | ???### ### ??????????????? | | ????## ## ####????????????????? | | ????## ###### #?????????????????? | | ????############??????????????????? | | ????######????????????????????????? | | ??????????????????????????????????? | | ??????????????????????????????????? | | ??????????????????????????????????? | | | | | | | | | | | | | | | +----------------------------------------------------+ Best States ------------- Heat Dissipation 28 Energy Generation 14 Energy Capacity 250 Matter Stores 300 Matter Capacity 300 Sight Range 16 Terrain Scan Density 10 Armor Coverage 450 Evasion (%) 40 Recoil Reduction 2 Item Schematics ----------------- None Robot Schematics ------------------ None Fabricated ------------ Nothing Alien Tech Used ----------------- None Achievements -------------- None Challenges ------------ None Game ------ Seed LargeAluminumStripper Manual? 0 Play Time 00:28:54 Cumulative 8.2 hours Start 2024.04.06 @ 23:57:19 End 2024.04.07 @ 00:45:37 Sessions 1 Manual Loads 0 Difficulty Rogue Special Mode None Game No. 9 Rogue 5 Adventurer 2 Explorer 2 Win Type - Total 0 Types 0/0/0/0/0/0/0/0/0 Lore% 13 Gallery% 13 Achievement% 12 Wizard Run 0 Options --------- Layout 0 ASCII 0 Keyboard 1 Movement Numpad Keybinds 0 Fullscreen 1 Font 18/X11Bold Map View 76x50 Zoom Use 0% Tactical HUD 1 Map Filters NONE Filters NONE Steam 1 RUN: 28049ec1-b5b0-467d-a273-d0ce03b019e5